fUSD/lending_fUSD_20240521
["ID","MTS","AMOUNT","RATE_DAILY","PERIOD"]
[327701890,1716327053119,-500.0,0.00032054,6]
[327701891,1716327053128,-500.0,0.00032054,6]
[327701892,1716327053138,-283.33222302,0.00032054,6]
[327701893,1716327053147,-1621.54,0.00032054,6]
[327701894,1716327053156,-1691.69,0.00032054,6]
[327701895,1716327053166,-500.0,0.00032054,6]
[327701896,1716327053175,-500.0,0.00032054,6]
[327701897,1716327053184,-555.88,0.00032054,6]
[327701898,1716327053194,-665.86,0.00032054,6]
[327701899,1716327053204,-500.0,0.00032054,6]
[327701900,1716327053213,-500.0,0.00032054,6]
[327701901,1716327053222,-500.0,0.00032054,6]
[327701902,1716327053232,-1025.22,0.00032054,6]
[327701903,1716327053241,-500.0,0.00032054,6]
[327701904,1716327053256,-1494.71,0.00032054,6]
[327701905,1716327053267,-500.0,0.00032054,6]
[327701906,1716327053276,-4274.58189899,0.00032097,3]
[327701907,1716327053285,-155.0,0.0003211,4]
[327701908,1716327053295,-155.0,0.00032111,4]
[327701909,1716327053305,-1009.20160319,0.00032145,2]
[327701910,1716327053314,-2030.65553091,0.00032145,2]
[327701911,1716327053323,-157.052206,0.00032148,32]
[327701912,1716327053334,-157.052206,0.00032248,32]
[327701913,1716327053343,-158.49166789,0.00032301,7]
[327701914,1716327053353,-158.49166789,0.00032302,7]
[327701915,1716327053362,-585.07218066,0.00032326,4]
[327701916,1716327053371,-199.64620206,0.00032326,4]
[327701917,1716327053381,-301.10654729,0.00032326,4]
[327701918,1716327053391,-155.0,0.00032327,4]
[327701919,1716327053400,-75945.7221937,0.00032327,7]
[327701920,1716327053410,-518.83646048,0.00032328,6]
[327701921,1716327053419,-177.4875909,0.00032328,6]
[327701922,1716327053428,-500.0,0.00032328,6]
[327701923,1716327053437,-500.0,0.00032328,6]
[327701924,1716327053446,-500.0,0.00032328,6]
[327701925,1716327053455,-859.67,0.00032328,6]
[327701926,1716327053464,-500.0,0.00032328,6]
[327701927,1716327053473,-500.0,0.00032328,6]
[327701928,1716327053483,-500.0,0.00032328,6]
[327701929,1716327053492,-500.0,0.00032328,6]
[327701930,1716327053501,-500.0,0.00032328,6]
[327701931,1716327053511,-500.0,0.00032328,6]
[327701932,1716327053520,-639.31,0.00032328,6]
[327701933,1716327053529,-585.16265172,0.00032328,6]
[327701934,1716327053538,-500.0,0.00032328,6]
[327701935,1716327053547,-625.65760497,0.00032328,6]
[327701936,1716327053556,-500.0,0.00032328,6]
[327701937,1716327053565,-500.0,0.00032328,6]
[327701938,1716327053575,-500.0,0.00032328,6]
[327701939,1716327053584,-500.0,0.00032328,6]
[327701940,1716327053594,-369.80568473,0.00032328,6]
[327701941,1716327053603,-500.0,0.00032328,6]
[327701942,1716327053612,-500.0,0.00032328,6]
[327701943,1716327053621,-500.0,0.00032328,6]
[327701944,1716327053631,-500.0,0.00032328,6]
[327701945,1716327053640,-500.0,0.00032328,6]
[327701946,1716327053649,-500.0,0.00032328,6]
[327701947,1716327053658,-500.0,0.00032328,6]
[327701948,1716327053667,-500.0,0.00032328,6]
[327701949,1716327053677,-500.0,0.00032328,6]
[327701950,1716327053686,-500.0,0.00032328,6]
[327701951,1716327053695,-500.0,0.00032328,6]
[327701952,1716327053704,-500.0,0.00032328,6]
[327701953,1716327053713,-239.04754738,0.00032328,6]
[327701954,1716327053722,-500.0,0.00032328,6]
[327701955,1716327053732,-500.0,0.00032328,6]
[327701956,1716327053741,-500.0,0.00032328,6]
[327701957,1716327053750,-386.84497868,0.00032328,6]
[327701958,1716327053760,-500.0,0.00032328,6]
[327701959,1716327053769,-508.88,0.00032328,6]
[327701960,1716327053779,-500.0,0.00032328,6]
[327701961,1716327053788,-500.0,0.00032328,6]
[327701962,1716327053797,-500.0,0.00032328,6]
[327701963,1716327053806,-500.0,0.00032328,6]
[327701964,1716327053816,-516.94848641,0.00032328,6]
[327701965,1716327053825,-500.0,0.00032328,6]
[327701966,1716327053834,-500.0,0.00032328,6]
[327701967,1716327053844,-521.74,0.00032328,6]
[327701968,1716327053854,-500.0,0.00032328,6]
[327701969,1716327053863,-500.0,0.00032328,6]
[327701970,1716327053872,-500.0,0.00032328,6]
[327701971,1716327053882,-500.0,0.00032328,6]
[327701972,1716327053891,-500.0,0.00032328,6]
[327701973,1716327053900,-500.0,0.00032328,6]
[327701974,1716327053910,-500.0,0.00032328,6]
[327701975,1716327053919,-681.72,0.00032328,6]
[327701976,1716327053928,-1609.55,0.00032328,6]
[327701977,1716327053937,-500.0,0.00032328,6]
[327701978,1716327053947,-500.0,0.00032328,6]
[327701979,1716327053956,-500.0,0.00032328,6]
[327701980,1716327053965,-500.0,0.00032328,6]
[327701981,1716327053975,-500.0,0.00032328,6]
[327701982,1716327053984,-904.21,0.00032328,6]
[327701983,1716327053994,-500.0,0.00032328,6]
[327701984,1716327054003,-500.0,0.00032328,6]
[327701985,1716327054012,-500.0,0.00032328,6]
[327701986,1716327054022,-943.3,0.00032328,6]
[327701987,1716327054032,-215.80514721,0.00032328,6]
[327701988,1716327054042,-500.0,0.00032328,6]
[327701989,1716327054051,-3293.21,0.00032328,6]
[327701990,1716327054061,-2624.01,0.00032328,6]
[327701991,1716327054070,-620.73,0.00032328,6]
[327701992,1716327054079,-11555.67,0.00032328,6]
[327701993,1716327054089,-500.0,0.00032328,6]
[327701994,1716327054098,-1047.52,0.00032328,6]
[327701995,1716327054108,-500.0,0.00032328,6]
[327701996,1716327054117,-500.0,0.00032328,6]
[327701997,1716327054126,-500.0,0.00032328,6]
[327701998,1716327054136,-2138.33,0.00032328,6]
[327701999,1716327054145,-868.83,0.00032328,6]
[327702000,1716327054154,-1094.02,0.00032328,6]
[327702001,1716327054164,-641.14,0.00032328,6]
[327702002,1716327054173,-2054.93,0.00032328,6]
[327702003,1716327054182,-434.6,0.00032328,6]
[327702004,1716327054191,-2394.75,0.00032328,6]
[327702005,1716327054201,-476.66487218,0.00032328,6]
[327702006,1716327054210,-500.0,0.00032328,6]
[327702007,1716327054219,-751.07,0.00032328,6]
[327702008,1716327054228,-6659.7,0.00032328,6]
[327702009,1716327054237,-902.89,0.00032328,6]
[327702010,1716327054247,-644.54,0.00032328,6]
[327702011,1716327054260,-500.0,0.00032328,6]
[327702012,1716327054269,-500.0,0.00032328,6]
[327702013,1716327054278,-500.0,0.00032328,6]
[327702014,1716327054288,-525.72,0.00032328,6]
[327702015,1716327054299,-500.0,0.00032328,6]
[327702016,1716327054308,-500.0,0.00032328,6]
[327702017,1716327054318,-6145.69,0.00032328,6]
[327702018,1716327054328,-1232.22,0.00032328,6]
[327702019,1716327054338,-649.99,0.00032328,6]
[327702020,1716327054347,-730.36,0.00032328,6]
[327702021,1716327054356,-1034.88,0.00032328,6]
[327702022,1716327054365,-735.26,0.00032328,6]
[327702023,1716327054374,-500.0,0.00032328,6]
[327702024,1716327054384,-2817.76,0.00032328,6]
[327702025,1716327054393,-500.0,0.00032328,6]
[327702026,1716327054402,-500.0,0.00032328,6]
[327702027,1716327054412,-902.3,0.00032328,6]
[327702028,1716327054422,-665.21,0.00032328,6]
[327702029,1716327054432,-236.75921906,0.00032328,6]
[327702030,1716327054442,-1010.2,0.00032328,6]
[327702031,1716327054452,-500.0,0.00032328,6]
[327702032,1716327054461,-904.23,0.00032328,6]
[327702033,1716327054470,-748.01,0.00032328,6]
[327702034,1716327054480,-500.0,0.00032328,6]
[327702035,1716327054489,-1506.06,0.00032328,6]
[327702036,1716327054499,-906.92,0.00032328,6]
[327702037,1716327054508,-500.0,0.00032328,6]
[327702038,1716327054517,-545.03,0.00032328,6]
[327702039,1716327054526,-6304.36,0.00032328,6]
[327702040,1716327054536,-500.0,0.00032328,6]
[327702041,1716327054545,-876.42,0.00032328,6]
[327702042,1716327054554,-723.68,0.00032328,6]
[327702043,1716327054564,-1859.8,0.00032328,6]
[327702044,1716327054574,-967.85,0.00032328,6]
[327702045,1716327054583,-500.0,0.00032328,6]
[327702046,1716327054592,-500.0,0.00032328,6]
[327702047,1716327054601,-500.22,0.00032328,6]
[327702048,1716327054611,-500.0,0.00032328,6]
[327702049,1716327054620,-500.0,0.00032328,6]
[327702050,1716327054629,-720.31,0.00032328,6]
[327702051,1716327054637,-1081.0,0.00032328,6]
[327702052,1716327054645,-1184.78,0.00032328,6]
[327702053,1716327054654,-500.0,0.00032328,6]
[327702054,1716327054664,-987.25,0.00032328,6]
[327702055,1716327054673,-844.48,0.00032328,6]
[327702056,1716327054683,-1280.14,0.00032328,6]
[327702057,1716327054693,-1374.44,0.00032328,6]
[327702058,1716327054703,-2297.42,0.00032328,6]
[327702059,1716327054712,-759.01,0.00032328,6]
[327702060,1716327054722,-500.0,0.00032328,6]
[327702061,1716327054730,-3505.42,0.00032328,6]
[327702062,1716327054740,-500.0,0.00032328,6]
[327702063,1716327054749,-500.0,0.00032328,6]
[327702064,1716327054759,-500.0,0.00032328,6]
[327702065,1716327054768,-16030.5,0.00032328,6]
[327702066,1716327054777,-500.0,0.00032328,6]
[327702067,1716327054787,-515.82,0.00032328,6]
[327702068,1716327054798,-1662.15,0.00032328,6]
[327702069,1716327054808,-500.0,0.00032328,6]
[327702070,1716327054818,-622.34,0.00032328,6]
[327702071,1716327054828,-647.67,0.00032328,6]
[327702072,1716327054838,-1728.42,0.00032328,6]
[327702073,1716327054847,-500.0,0.00032328,6]
[327702074,1716327054856,-1018.3,0.00032328,6]
[327702075,1716327054866,-500.0,0.00032328,6]
[327702076,1716327054875,-500.0,0.00032328,6]
[327702077,1716327054884,-630.94,0.00032328,6]
[327702078,1716327054894,-4277.76,0.00032328,6]
[327702079,1716327054903,-943.98,0.00032328,6]
[327702080,1716327054913,-199.93013182,0.00032328,6]
[327702081,1716327054922,-500.0,0.00032328,6]
[327702082,1716327054932,-500.0,0.00032328,6]
[327702083,1716327054942,-1621.54,0.00032328,6]
[327702084,1716327054952,-1691.69,0.00032328,6]
[327702085,1716327054961,-500.0,0.00032328,6]
[327702086,1716327054970,-500.0,0.00032328,6]
[327702087,1716327054979,-555.88,0.00032328,6]
[327702088,1716327054989,-665.86,0.00032328,6]
[327702089,1716327054999,-500.0,0.00032328,6]
[327702090,1716327055008,-500.0,0.00032328,6]
[327702091,1716327055018,-500.0,0.00032328,6]
[327702092,1716327055027,-500.0,0.00032328,6]
[327702093,1716327055036,-1025.22,0.00032328,6]
[327702094,1716327055046,-1494.71,0.00032328,6]
[327702095,1716327055056,-157.052206,0.00032348,32]
[327702096,1716327055066,-155.0,0.00032359,7]
[327702097,1716327055075,-174.14011094,0.00032404,4]
[327702098,1716327055085,-698.84126527,0.00032404,2]
[327702099,1716327055094,-245.19130382,0.00032404,2]
[327702100,1716327055105,-154.01690484,0.00032404,7]
[327702101,1716327055115,-154.01690484,0.00032404,7]
[327702102,1716327055125,-154.01690484,0.00032404,7]
[327702103,1716327055136,-154.01690484,0.00032404,7]
[327702104,1716327055145,-154.01690484,0.00032404,7]
[327702105,1716327055154,-154.01690484,0.00032404,7]
[327702106,1716327055164,-154.01690484,0.00032404,7]
[327702107,1716327055173,-154.01690484,0.00032404,7]
[327702108,1716327055183,-154.01690484,0.00032404,7]
[327702109,1716327055193,-154.01690484,0.00032404,7]
[327702110,1716327055202,-154.01690484,0.00032404,7]
[327702111,1716327055211,-154.01690484,0.00032404,7]
[327702112,1716327055221,-154.01690484,0.00032404,7]
[327702113,1716327055230,-154.01690484,0.00032404,7]
[327702114,1716327055239,-154.01690484,0.00032404,7]
[327702115,1716327055250,-154.01690484,0.00032404,7]
[327702116,1716327055263,-154.01690484,0.00032404,7]
[327702117,1716327055274,-154.01690484,0.00032404,7]
[327702118,1716327055282,-154.51,0.00032404,7]
[327702119,1716327055292,-585.33923838,0.00032404,7]
[327702120,1716327055303,-585.33923838,0.00032404,7]
[327702121,1716327055313,-585.33923838,0.00032404,7]
[327702122,1716327055322,-585.33923838,0.00032404,7]
[327702123,1716327055331,-585.33923838,0.00032404,7]
[327702124,1716327055340,-585.33923838,0.00032404,7]
[327702125,1716327055351,-585.33923838,0.00032404,7]
[327702126,1716327055360,-585.33923838,0.00032404,7]
[327702127,1716327055370,-585.33923838,0.00032404,7]
[327702128,1716327055379,-585.33923838,0.00032404,7]
[327702129,1716327055388,-585.33923838,0.00032404,7]
[327702130,1716327055398,-157.052206,0.00032448,32]
[327702131,1716327055408,-428.86670889,0.00032486,4]
[327702132,1716327055417,-150.68,0.00032494,15]
[327702133,1716327055427,-1033.1470884,0.000325,2]
[327702134,1716327055436,-1424.43572808,0.000325,2]
[327702135,1716327055447,-5800.0,0.000325,2]
[327702136,1716327055456,-1100.0,0.000325,11]
[327702137,1716327055465,-128927.59178232,0.00032502,2]
[327702138,1716327055475,-219.692212,0.00032502,7]
[327702139,1716327055484,-151.0,0.00032502,7]
[327702140,1716327055493,-151.0,0.00032502,7]
[327702141,1716327055503,-151.0,0.00032502,7]
[327702142,1716327055513,-151.0,0.00032502,7]
[327702143,1716327055523,-151.0,0.00032502,7]
[327702144,1716327055532,-151.0,0.00032502,7]
[327702145,1716327055542,-151.0,0.00032502,7]
[327702146,1716327055552,-4192.72594114,0.00032502,4]
[327702147,1716327055562,-1364.74024267,0.00032502,4]
[327702148,1716327055572,-5272.68896387,0.00032502,4]
[327702149,1716327055582,-3283.77690883,0.00032502,4]
[327702150,1716327055591,-815.71749102,0.00032502,4]
[327702151,1716327055601,-1371.33763917,0.00032502,14]
[327702152,1716327055611,-336.15436069,0.00032502,2]
[327702153,1716327055620,-4270.43096135,0.00032502,4]
[327702154,1716327055630,-155.0,0.00032502,4]
[327702155,1716327055640,-803.54280121,0.00032502,4]
[327702156,1716327055650,-200.09244768,0.00032502,4]
[327702157,1716327055659,-185.00634686,0.00032502,4]
[327702158,1716327055669,-237.66446803,0.00032502,4]
[327702159,1716327055679,-170.50859977,0.00032502,4]
[327702160,1716327055688,-201.6842758,0.00032502,4]
[327702161,1716327055701,-405.48134435,0.00032502,4]
[327702162,1716327055711,-696.92,0.00032502,5]
[327702163,1716327055720,-170.41326898,0.00032503,4]
[327702164,1716327055731,-817.82411991,0.00032503,2]
[327702165,1716327055741,-1141.71144619,0.00032503,15]
[327702166,1716327055751,-151.0,0.00032504,7]
[327702167,1716327055761,-151.0,0.00032504,7]
[327702168,1716327055771,-151.0,0.00032504,7]
[327702169,1716327055782,-151.0,0.00032504,7]
[327702170,1716327055791,-151.0,0.00032504,7]
[327702171,1716327055801,-151.0,0.00032504,7]
[327702172,1716327055810,-278.52984609,0.00032504,5]
[327702173,1716327055821,-85557.98887319,0.00032504,5]
[327702174,1716327056006,-1445.75793253,0.00032504,5]
[327702175,1716327056019,-625.52204768,0.00032504,5]
[327702176,1716327056031,-1356.73969651,0.00032504,5]
[327702177,1716327056044,-1606.41088121,0.00032504,5]
[327702178,1716327056056,-13543.89278176,0.00032504,5]
[327702179,1716327056307,-500.0,0.00032328,6]
[327702180,1716327056317,-3459.850002,0.00032504,5]
[327702181,1716327056333,-20269.482,0.00031405,2]
[327702182,1716327056344,-55119.22099819,0.00032504,5]
[327702183,1716327056386,-3475.45,0.00032504,5]
[327702184,1716327056398,-838032.08863175,0.00032504,5]
[327702185,1716327056409,-6140.91867397,0.00032504,5]
[327702186,1716327056421,-2759.5004898,0.00032504,5]
[327702187,1716327056434,-1519.4173148,0.00032504,5]
[327702188,1716327056477,-11451.47465665,0.00032504,5]
[327702189,1716327056489,-627929.47248261,0.00032504,5]
[327702190,1716327056500,-1392640.0,0.00032504,5]
[327702191,1716327056527,-537.16417105,0.00032504,5]
[327702192,1716327056602,-1982.0994527,0.00030957,2]
[327702193,1716327056614,-4204.03461409,0.00030957,2]
[327702194,1716327056624,-162.54548388,0.00032502,4]
[327702195,1716327056633,-212.89350776,0.00032502,4]
[327702196,1716327056643,-213095.121747,0.00032504,5]
[327702197,1716327056654,-31961.53524856,0.00032504,5]
[327702198,1716327056666,-1235.35670253,0.00032504,5]
[327702199,1716327056678,-1934.15722085,0.00032504,5]
[327702200,1716327056690,-13561.47766172,0.00032504,5]
[327702201,1716327056714,-613.0,0.00031405,2]
[327702202,1716327056724,-210.29,0.00032504,5]
[327702203,1716327056735,-426693.90033598,0.00032504,5]
[327702204,1716327059576,-14806.0888339,0.00032504,5]
[327702205,1716327059591,-5852.69943588,0.00032504,5]
[327702206,1716327059606,-4803.45941549,0.00032504,5]
[327702207,1716327152400,591.14,0.00029987,120]
[327702208,1716327224045,9538.86720947,0.00013,2]
[327702209,1716327224072,9538.86720947,0.00013,2]
[327702210,1716327224098,9538.86720947,0.00013,2]
[327702211,1716327247180,2412.02287904,0.000118,2]
[327702212,1716327247206,9538.86720947,0.000118,2]
[327702213,1716327247231,9538.86720947,0.000118,2]
[327702214,1716327247260,118040.34566107,0.000118,2]
[327702215,1716327247571,190.72,0.00025243,120]
[327702216,1716327304930,150.5,0.00019716,15]
[327702217,1716327305605,150.5,0.00019706,15]
[327702218,1716327306195,150.5,0.00019696,15]
[327702219,1716327362393,243.0607711,0.000101,2]
[327702220,1716327398874,7741.39190065,0.0001,2]
[327702221,1716327438520,209.31165907,0.0001,2]
[327702222,1716327933111,-155.0,0.00012871,2]
[327702223,1716327933130,-155.0,0.00012872,2]
[327702224,1716327933150,-340.17434958,0.00012872,2]
[327702225,1716328028264,-954.66431213,0.00012806,2]
[327702226,1716328028292,-439.04663811,0.00012806,2]
[327702227,1716328047111,-259.02565815,0.00012806,2]
[327702228,1716328047134,-155.0,0.00012807,2]
[327702229,1716328047156,-201.31085316,0.00012808,2]
[327702230,1716328047179,-150.0,0.00012877,2]
[327702231,1716328047201,-1076.33140367,0.0001289,2]
[327702232,1716328047223,-1331.50722363,0.00012898,2]
[327702244,1716328189569,-955.89067804,0.00012253,2]
[327702245,1716328189592,-2605.01235126,0.0001264,2]
[327702246,1716328189618,-150.0,0.00012898,2]
[327702247,1716328189641,-180.48395258,0.00012898,2]
[327702248,1716328189664,-250.60071069,0.00012898,2]
[327702249,1716328189687,-970.76435009,0.00012898,2]
[327702250,1716328189709,-320528.37441091,0.00012898,2]
[327702251,1716328189730,-4598.04156785,0.00012899,2]
[327702252,1716328189752,-3481.24225811,0.00012899,2]
[327702253,1716328189772,-9678.03,0.000129,2]
[327702254,1716328189801,-7184.4629709,0.000129,2]
[327702255,1716328189822,-156.84401569,0.000129,2]
[327702256,1716328189844,-54191.01506384,0.000129,2]
[327702257,1716328189865,-1397.68253054,0.000129,2]
[327702258,1716328189886,-31713.09678507,0.000129,2]
[327702259,1716328189909,-223.22835296,0.000129,2]
[327702260,1716328189933,-198.223205,0.000129,2]
[327702261,1716328189956,-150.20476875,0.0001299,2]
[327702262,1716328189978,-151.58,0.0001299,2]
[327702263,1716328190002,-151.58,0.0001299,2]
[327702264,1716328190024,-151.58,0.0001299,2]
[327702265,1716328190047,-151.58,0.0001299,2]
[327702266,1716328190069,-151.58,0.0001299,2]
[327702267,1716328190090,-151.58,0.0001299,2]
[327702268,1716328190112,-151.58,0.0001299,2]
[327702269,1716328190133,-151.58,0.0001299,2]
[327702270,1716328190156,-151.58,0.0001299,2]
[327702271,1716328190180,-151.58,0.0001299,2]
[327702272,1716328190204,-151.58,0.0001299,2]
[327702273,1716328190228,-151.58,0.0001299,2]
[327702274,1716328190251,-151.58,0.0001299,2]
[327702275,1716328190275,-151.58,0.0001299,2]
[327702276,1716328190299,-151.58,0.0001299,2]
[327702277,1716328190324,-151.58,0.0001299,2]
[327702278,1716328190350,-151.58,0.0001299,2]
[327702279,1716328190372,-151.58,0.0001299,2]
[327702280,1716328190395,-151.58,0.0001299,2]
[327702281,1716328190420,-151.58,0.0001299,2]
[327702282,1716328190442,-151.58,0.0001299,2]
[327702283,1716328190464,-151.58,0.0001299,2]
[327702284,1716328190488,-151.58,0.0001299,2]
[327702285,1716328190512,-151.58,0.0001299,2]
[327702286,1716328190533,-151.58,0.0001299,2]
[327702287,1716328190554,-576.97713249,0.00012998,2]
[327702288,1716328190582,-283.39973472,0.00012998,2]
[327702289,1716328190608,-156.82952959,0.00012998,2]
[327702290,1716328190631,-160.0,0.00012998,2]
[327702291,1716328190654,-199.59753316,0.00012999,2]
[327702292,1716328190675,-93914.55,0.00012999,2]
[327702293,1716328190700,-13429399.5448183,0.00013,2]
[327702294,1716328190724,-1891290.72312182,0.00013,2]
[327702295,1716328190746,-499.99,0.00013,2]
[327702296,1716328190768,-9999.99,0.00013,2]
[327702297,1716328190790,-499.99,0.00013,2]
[327702298,1716328194904,298.96189554,0.00012898,2]
[327702299,1716328199679,430.02074543,0.000129,2]
[327702300,1716328203033,2361.43458561,0.0001264,2]
[327702301,1716328208881,745.21564505,0.00012898,2]
[327702302,1716328214733,298.96189554,0.00012898,2]
[327702303,1716328224880,970.76435009,0.0001264,2]
[327702304,1716328226783,604.79824123,9.48e-05,2]
[327702305,1716328230554,7519.47512195,0.0001264,2]
[327702306,1716328230730,195.90793129,0.0001264,2]
[327702319,1716328231812,-346.53616094,0.00014007,2]
[327702320,1716328231824,-166.39383906,0.00014007,2]
[327702321,1716328231834,-7184.46297088,0.00014673,2]
[327702322,1716328231843,-157.23,0.00014987,2]
[327702323,1716328231853,-2808.60219999,0.00015,2]
[327702324,1716328231865,-1421.18809713,0.00015,2]
[327702325,1716328231876,-5027.90970285,0.00015,2]
[327702326,1716328231885,-618.92358897,0.00015639,2]
[327702327,1716328231894,-250.0,0.0001564,2]
[327702328,1716328231904,-213.12,0.00015735,2]
[327702329,1716328231912,-250.0,0.00015925,2]
[327702330,1716328231952,-154.03,0.00016013,2]
[327702331,1716328231962,-286.75,0.00016023,2]
[327702332,1716328231971,-154.03,0.00016023,2]
[327702333,1716328231981,-154.03,0.00016033,2]
[327702334,1716328231990,-154.03,0.00016043,2]
[327702335,1716328231999,-154.03,0.00016053,2]
[327702336,1716328232008,-154.03,0.00016063,2]
[327702337,1716328232017,-154.03,0.00016073,2]
[327702338,1716328232026,-154.03,0.00016083,2]
[327702339,1716328232036,-154.03,0.00016093,2]
[327702340,1716328232045,-337.04,0.00016132,2]
[327702341,1716328232055,-23900.0,0.0001616,2]
[327702342,1716328232064,-512.93,0.00016271,2]
[327702343,1716328232073,-666.83,0.00016434,2]
[327702344,1716328232083,-7184.46297088,0.00016446,2]
[327702345,1716328232092,-1227.04758271,0.000165,2]
[327702346,1716328232101,-105866.83467234,0.00017225,2]
[327702348,1716328232111,-213.12,0.00017701,2]
[327702350,1716328232120,-7184.46297088,0.00018219,2]
[327702352,1716328232130,-512.93,0.00018535,2]
[327702354,1716328232139,-337.04,0.00018872,2]
[327702356,1716328232148,-415.13,0.000195,2]
[327702358,1716328232158,-498.8,0.000195,2]
[327702360,1716328232167,-213.12,0.00019668,2]
[327702362,1716328232176,-37475.68633145,0.00019696,2]
[327702364,1716328232185,-1039.20687623,0.00019696,2]
[327702366,1716328232194,-1043.64061414,0.00019696,2]
[327702368,1716328232203,-500.0,0.00019696,2]
[327702369,1716328232213,-7184.46297088,0.00019992,2]
[327702370,1716328232222,-1773.26835727,0.0002,2]
[327702371,1716328232232,-192634.85140526,0.0002,4]
[327702372,1716328232242,-905.49797775,0.0002,2]
[327702373,1716328232251,-1886.08344571,0.0002,2]
[327702374,1716328232260,-512.93,0.00020799,2]
[327702375,1716328232269,-337.04,0.00021612,2]
[327702376,1716328232278,-213.12,0.00021635,2]
[327702377,1716328232287,-7184.46297088,0.00021765,2]
[327702378,1716328232297,-5000.00387595,0.00022,2]
[327702379,1716328232306,-738.0,0.000229,4]
[327702380,1716328232315,-512.93,0.00023063,2]
[327702381,1716328232325,-7184.46297088,0.00023539,2]
[327702382,1716328232334,-213.12,0.00023602,2]
[327702383,1716328232343,-250.0,0.00024658,2]
[327702384,1716328232352,-9082.81442873,0.00024889,2]
[327702385,1716328232361,-4061.31106182,0.00024898,2]
[327702386,1716328232371,-3963.6683,0.0002504,2]
[327702387,1716328232380,-17236.49443148,0.0002514,2]
[327702388,1716328232392,-5985.8999,0.0002514,2]
[327702389,1716328232403,-4775.21530046,0.0002514,2]
[327702390,1716328232415,-60547.24386806,0.0002514,2]
[327702391,1716328232424,-2955.6735,0.0002514,2]
[327702392,1716328232433,-2161.97087569,0.0002514,2]
[327702393,1716328232449,-616.41335831,0.0002514,2]
[327702394,1716328232460,-89.381666,0.0002514,2]
[327702395,1716328232470,-187.56368904,0.00025243,2]
[327702396,1716328232508,547665.6512368,0.0001264,2]
[327702397,1716328233238,173.52801633,0.0001264,2]
[327702398,1716328233659,207.6888161,0.0001264,2]
[327702399,1716328237023,2604.3520118,0.00012387,2]
[327702407,1716328238171,-163.61730037,0.00014573,2]
[327702408,1716328238181,-69.50110042,0.00025243,2]
[327702409,1716328238191,-445.32504803,0.00025243,2]
[327702410,1716328238200,-7184.46297088,0.00025312,2]
[327702411,1716328238209,-512.93,0.00025327,2]
[327702412,1716328238219,-152.54522823,0.00026993,2]
[327702413,1716328238229,-7184.46297088,0.00027085,2]
[327702414,1716328238238,-150.45885858,0.000274,7]
[327702415,1716328238247,-150.45885858,0.000274,7]
[327702416,1716328238257,-150.45885858,0.000274,7]
[327702417,1716328238267,-150.45885858,0.000274,7]
[327702418,1716328238276,-150.45885858,0.000274,7]
[327702419,1716328238286,-150.45885858,0.000274,7]
[327702420,1716328238298,-150.95,0.000274,7]
[327702421,1716328238308,-512.93,0.0002759,2]
[327702422,1716328238319,-210.71740201,0.00028674,7]
[327702423,1716328238339,-158.49166789,0.00028686,2]
[327702424,1716328238352,-574.27775981,0.00028858,2]
[327702425,1716328238369,-6610.18521107,0.00028858,2]
[327702426,1716328238379,-210.71740201,0.00029028,7]
[327702427,1716328238388,-751.01567283,0.00029252,2]
[327702428,1716328238398,-133.6025832,0.00029382,7]
[327702429,1716328238410,-77.11481881,0.00029382,7]
[327702430,1716328238419,-152.54522823,0.00029435,2]